bitfinex/quotes_ETHUSD_20250623
["timestamp","ask_amount","ask_price","bid_price","bid_amount"]
[1750690457892,10.0,2284.4,2283.9,4.37837941]
[1750690458291,10.0,2284.4,2284.0,4.37825419]
[1750690458495,10.0,2284.4,2283.9,4.37839195]
[1750690459081,10.0,2284.4,2283.9,11.94739195]
[1750690459285,10.0,2284.4,2284.0,4.3782831]
[1750690459509,0.2213009,2284.5,2284.1,4.37796454]
[1750690459695,0.2213009,2284.5,2284.3,4.37760894]
[1750690459896,0.2213009,2284.5,2284.4,4.37751707]
[1750690460077,0.2213009,2284.5,2284.4,0.8099]
[1750690460283,0.2213009,2284.5,2284.2,4.37784341]
[1750690460605,0.2213009,2284.5,2284.4,4.37751707]
[1750690460800,0.2213009,2284.5,2284.1,0.8099]
[1750690461011,1.0472009,2284.5,2284.2,7.567]
[1750690461183,0.2213009,2284.5,2284.4,4.37751707]
[1750690461927,0.2213009,2284.5,2284.3,4.37756778]
[1750690461928,0.2213009,2284.5,2284.3,4.37759207]
[1750690462097,0.2213009,2284.5,2284.4,4.37751707]
[1750690463138,0.2213009,2284.5,2284.3,4.37759623]
[1750690463283,0.2213009,2284.5,2284.2,11.94481897]
[1750690463479,0.2213009,2284.5,2284.3,4.37758669]
[1750690463680,0.2213009,2284.5,2284.0,4.37820387]
[1750690463921,0.2213009,2284.5,2284.1,11.94300438]
[1750690464331,0.2213009,2284.5,2284.2,7.565]
[1750690464543,0.7574,2284.4,2284.2,7.565]
[1750690464729,0.7574,2284.4,2283.9,4.37840379]
[1750690464931,0.7574,2284.4,2284.0,7.564]
[1750690465295,0.7574,2284.4,2284.0,11.94218498]
[1750690465996,0.7574,2284.4,2284.1,4.37808926]
[1750690466538,0.7574,2284.4,2284.0,11.94217012]
[1750690466721,0.7574,2284.4,2284.0,11.94215173]
[1750690466924,0.7574,2284.4,2284.1,4.37802013]
[1750690467439,0.7574,2284.4,2284.0,11.94220908]
[1750690467738,0.7574,2284.4,2284.0,11.94221128]
[1750690468120,0.7574,2284.4,2284.0,7.564]
[1750690468323,0.7574,2284.4,2284.1,4.37803623]
[1750690468710,0.7574,2284.4,2284.2,4.37777423]
[1750690469448,0.2213009,2284.5,2284.4,4.37751707]
[1750690470146,0.2213009,2284.5,2284.3,4.3777087]
[1750690470357,0.2213009,2284.5,2284.4,4.37751707]
[1750690470854,0.2213009,2284.5,2284.3,11.93859926]
[1750690471434,0.2213009,2284.5,2283.8,0.7946]
[1750690471740,0.7644,2284.4,2283.9,9.662]
[1750690471907,0.7644,2284.4,2284.2,4.37782263]
[1750690473040,0.7644,2284.4,2284.3,4.3777087]
[1750690473248,0.2213009,2284.5,2284.3,4.3777087]
[1750690473442,0.2213009,2284.5,2284.2,11.93782263]
[1750690473443,0.2213009,2284.5,2284.2,11.937842]
[1750690473649,0.2213009,2284.5,2284.3,4.37763003]
[1750690474144,0.2213009,2284.5,2284.0,4.37813846]
[1750690474361,0.2213009,2284.5,2284.2,4.37789265]
[1750690474579,0.2213009,2284.5,2284.2,4.37790035]
[1750690474787,0.2213009,2284.5,2284.2,4.37773092]
[1750690474939,0.2213009,2284.5,2284.3,4.37770144]
[1750690475474,0.2213009,2284.5,2283.8,0.7946]
[1750690475641,0.2213009,2284.5,2284.0,4.37809586]
[1750690475841,0.2213009,2284.5,2284.0,4.37811677]
[1750690476037,0.2213009,2284.5,2283.9,14.03739257]
[1750690476277,10.7659,2284.4,2283.8,4.37856392]
[1750690476438,10.7659,2284.4,2284.0,7.557]
[1750690476973,10.7659,2284.4,2283.9,7.557]
[1750690477176,1.301,2284.3,2283.7,11.9358454]
[1750690477339,0.751,2284.3,2283.7,11.93574952]
[1750690477535,2.16926488,2284.3,2283.6,4.37904874]
[1750690477778,0.7803,2284.0,2283.6,11.93604874]
[1750690478075,0.7803,2284.0,2283.6,11.93504874]
[1750690478441,8.5403,2284.0,2283.6,7.556]
[1750690478767,13.71059018,2283.8,2282.7,0.7723]
[1750690479073,10.0,2283.7,2282.9,4.38038007]
[1750690479372,10.0,2283.7,2283.4,4.37928368]
[1750690479576,10.0,2283.7,2283.3,4.37953623]
[1750690479875,10.0,2283.7,2283.2,11.93571291]
[1750690480035,10.0,2283.7,2283.3,4.37960985]
[1750690480237,10.0,2283.7,2283.2,11.93474492]
[1750690481165,10.0,2283.7,2283.3,4.37961764]
[1750690482367,10.0,2283.7,2283.2,11.93471532]
[1750690482985,0.7924,2283.6,2283.2,7.555]
[1750690484474,24.52459018,2283.5,2282.8,4.38044138]
[1750690484674,32.28459018,2283.5,2282.8,11.93344138]
[1750690485150,32.28459018,2283.5,2282.9,4.38036475]
[1750690485546,32.28459018,2283.5,2282.9,4.38037546]
[1750690485785,32.28459018,2283.5,2282.9,4.38021758]
[1750690486283,36.3762732,2283.5,2282.9,4.38038514]
[1750690486476,36.3762732,2283.5,2282.9,4.38030647]
[1750690486658,36.3762732,2283.5,2282.9,4.3802401]
[1750690487649,0.8039,2283.4,2282.7,6.47168788]
[1750690487850,10.0,2283.1,2282.3,4.38152318]
[1750690488191,0.8039,2283.0,2282.4,7.552]
[1750690488392,0.8039,2283.2,2282.5,0.7637]
[1750690488590,0.8039,2283.2,2282.7,4.38077714]
[1750690488797,0.8039,2283.2,2282.8,7.552]
[1750690488961,0.8039,2283.2,2282.8,11.93258356]
[1750690489508,0.8039,2283.2,2282.8,7.552]
[1750690490611,0.8039,2283.2,2282.8,11.93250335]
[1750690490812,0.8039,2283.2,2282.9,4.3802659]
[1750690490986,0.8039,2283.2,2282.9,4.38029784]
[1750690491316,0.8039,2283.2,2282.8,7.552]
[1750690491479,0.8039,2283.2,2282.9,4.38029468]
[1750690491905,0.8039,2283.2,2282.8,11.93248866]
[1750690492104,0.8039,2283.2,2282.9,4.38039304]
[1750690492306,0.8039,2283.2,2282.8,11.9324779]
[1750690492616,0.8039,2283.2,2282.8,7.552]
[1750690493387,0.8039,2283.2,2282.8,11.93256955]
[1750690493601,0.8039,2283.2,2282.8,7.552]
[1750690494805,0.8039,2283.2,2282.9,7.55]
[1750690495119,2.66029,2283.2,2282.9,7.55]
[1750690496315,0.8039,2283.2,2282.9,7.55]
[1750690498827,10.0,2283.3,2282.9,7.55]
[1750690499029,10.0,2283.3,2283.0,4.38012548]
[1750690499198,10.0,2283.3,2283.2,4.37981779]
[1750690499398,7.76,2283.4,2283.3,4.37962597]
[1750690499603,8.5677,2283.7,2283.4,4.37942799]
[1750690499818,10.0,2283.6,2283.4,4.37942799]
[1750690500335,10.0,2283.6,2283.3,7.547]
[1750690500632,10.0,2283.6,2283.3,11.92660109]
[1750690500835,10.0,2283.6,2283.4,4.37943017]
[1750690501198,10.0,2283.6,2283.4,4.37943417]
[1750690501533,10.0,2283.6,2283.2,4.37980518]
[1750690501740,10.0,2283.6,2283.3,7.546]
[1750690501889,10.0,2283.6,2283.5,4.37924239]
[1750690502094,7.76,2283.7,2283.6,4.37905062]
[1750690502307,17.76,2283.7,2283.6,4.37905062]
[1750690502518,0.8234,2284.1,2283.3,11.92552478]
[1750690502686,0.8234,2284.1,2283.4,0.7531]
[1750690503188,0.8234,2284.1,2283.8,4.37859308]
[1750690503502,0.8234,2284.1,2283.9,7.544]
[1750690505416,11.68174,2284.1,2283.1,0.759]
[1750690505623,10.7596,2283.9,2283.4,4.37941327]
[1750690505829,10.7596,2283.9,2283.3,4.37952688]
[1750690506627,12.697394,2283.9,2283.2,11.9227079]
[1750690506929,12.697394,2283.9,2283.4,4.37941816]
[1750690507136,7.76,2284.0,2283.8,4.37847659]
[1750690507298,7.76,2284.0,2283.8,11.91959071]
[1750690507299,10.0,2284.0,2283.8,11.91959071]
[1750690507693,7.76,2284.1,2284.0,4.37828371]
[1750690508102,0.2213009,2284.5,2284.4,4.37751707]
[1750690508300,0.2213009,2284.5,2284.2,0.43208008]
[1750690508516,0.2213009,2284.5,2284.4,4.37751707]
[1750690508999,0.2213009,2284.5,2284.4,4.37631708]
[1750690509733,0.2213009,2284.5,2284.4,5.18821708]
[1750690510145,0.2213009,2284.5,2284.4,15.18821708]
[1750690510709,0.2213009,2284.5,2284.4,24.81821708]
[1750690512124,0.10630315,2284.5,2284.4,24.81821708]
[1750690512325,0.8314,2285.7,2285.3,4.37569428]
[1750690512529,0.7593,2285.4,2284.4,0.7542]
[1750690512839,0.7593,2285.1,2284.6,4.37710577]
[1750690513133,0.7593,2285.1,2284.7,4.37689906]
[1750690513534,0.7593,2285.1,2284.6,7.536]
[1750690513695,10.0,2285.2,2284.6,7.536]
[1750690513696,13.71059018,2285.0,2284.6,7.536]
[1750690513894,0.7759,2284.9,2284.5,7.536]
[1750690514402,2.22454902,2284.9,2284.5,7.536]
[1750690514618,2.22454902,2284.9,2284.3,4.37762648]
[1750690514809,2.22454902,2284.9,2284.0,4.37821009]
[1750690515136,0.7759,2284.8,2284.2,4.37785944]
[1750690515435,0.7759,2284.8,2284.1,11.91293317]
[1750690515639,12.36941392,2284.8,2284.2,4.37788339]
[1750690516001,12.36941392,2284.8,2284.3,4.37767769]
[1750690516237,12.36941392,2284.8,2284.2,4.37786139]
[1750690516414,12.36941392,2284.8,2284.2,11.91186139]
[1750690516810,12.36941392,2284.8,2284.2,7.534]
[1750690517143,12.36941392,2284.8,2284.2,11.91188561]
[1750690517644,12.36941392,2284.8,2284.3,4.3776936]
[1750690517943,25.74663157,2284.7,2284.0,6.45820167]
[1750690518143,0.55,2284.6,2284.2,7.534]
[1750690518845,0.8185,2284.5,2284.2,7.534]
[1750690519018,0.8185,2284.5,2284.0,4.37820063]
[1750690519218,0.8185,2284.5,2284.1,7.533]
[1750690519419,0.8185,2284.5,2284.1,7.532]
[1750690519648,0.8185,2284.5,2284.1,11.9100678]
[1750690519843,0.8185,2284.5,2284.1,7.532]
[1750690520144,3.40760316,2284.5,2283.6,11.2743]
[1750690520444,0.8031,2284.4,2284.0,4.3782765]
[1750690521106,0.8031,2284.4,2284.1,4.3780894]
[1750690521309,0.8031,2284.4,2283.9,4.37840196]
[1750690521628,0.8031,2284.4,2284.0,4.37826594]
[1750690521829,0.8031,2284.4,2283.8,6.45750852]
[1750690522048,1.3339,2284.3,2283.6,10.52]
[1750690522249,1.3339,2284.3,2283.5,4.37906075]
[1750690522250,0.7782,2284.2,2283.5,4.37906075]
[1750690522451,0.7782,2284.2,2283.6,11.91004348]
[1750690522651,0.7782,2284.2,2283.8,4.37854007]
[1750690522855,0.7782,2284.2,2283.9,4.37846391]
[1750690523051,0.7782,2284.2,2283.6,7.531]
[1750690523220,0.7782,2284.2,2283.9,4.37847099]
[1750690523560,0.7782,2284.2,2284.0,4.37820603]
[1750690524125,0.7782,2284.2,2284.0,4.37812517]
[1750690524935,0.7782,2284.2,2283.9,4.37833269]
[1750690525121,0.7782,2284.2,2284.0,4.37827993]
[1750690525640,0.7782,2284.2,2284.1,4.37809202]
[1750690525839,7.76,2284.4,2284.3,4.3777087]
[1750690526048,7.76,2284.4,2284.2,4.37777949]
[1750690526248,7.76,2284.4,2284.1,4.37798304]
[1750690526826,7.76,2284.4,2283.9,4.37844957]
[1750690527135,8.61116,2284.4,2283.9,7.529]
[1750690527335,7.76,2284.4,2284.0,4.37820412]
[1750690527557,7.76,2284.4,2283.9,11.90735523]
[1750690528064,0.7994,2284.3,2283.7,11.90778574]
[1750690528424,0.7994,2284.3,2283.7,11.90678574]
[1750690528621,0.7994,2284.3,2283.4,2.8488]
[1750690528922,0.7994,2284.3,2283.6,4.37905062]
[1750690528923,0.8139,2284.1,2283.6,4.37905062]
[1750690529354,0.8139,2284.1,2283.7,4.37885805]
[1750690529592,8.5739,2284.1,2283.7,4.37885805]
[1750690529946,8.5739,2284.1,2283.7,4.37868179]
[1750690530580,8.5739,2284.1,2283.8,4.37864164]
[1750690531053,8.5739,2284.1,2283.8,4.37866595]
[1750690531253,8.5739,2284.1,2283.7,4.37873982]
[1750690532082,8.5739,2284.1,2283.8,4.37857301]
[1750690532282,7.76,2284.1,2283.9,4.37830343]
[1750690532456,10.8202,2284.3,2284.0,4.37828371]
[1750690532659,12.67822,2284.3,2283.8,7.527]
[1750690535698,0.763,2283.5,2283.4,4.37943417]
[1750690536499,7.76,2283.7,2283.0,11.90619668]
[1750690536500,8.5236,2283.7,2283.1,4.38000905]
[1750690536676,8.5236,2283.7,2283.3,4.37954189]
[1750690536877,0.7672,2283.6,2283.1,4.37988847]
[1750690537078,7.76,2283.5,2283.1,4.37991821]
[1750690537308,7.76,2283.5,2283.2,4.37974838]
[1750690539016,7.76,2283.5,2283.1,4.37998782]
[1750690539313,7.76,2283.5,2283.1,4.37983292]
[1750690539466,7.76,2283.5,2282.9,7.526]
[1750690539467,7.76,2283.5,2282.9,4.38032149]
[1750690539812,0.819,2283.3,2282.7,4.3806663]
[1750690539970,0.819,2283.1,2282.7,7.524]
[1750690540171,7.76,2283.0,2282.7,7.524]
[1750690540480,7.76,2283.0,2282.5,4.381107]
[1750690540828,0.7906,2282.8,2282.3,2.08]
[1750690540997,0.7906,2282.8,2281.5,14.90507291]
[1750690540998,0.821,2282.6,2282.0,4.38198838]
[1750690541201,0.821,2282.6,2282.2,4.3817232]
[1750690541583,0.821,2282.6,2282.1,11.90592798]
[1750690541584,14.53159018,2282.6,2282.1,7.523]
[1750690541781,0.821,2282.5,2282.1,7.523]
[1750690542201,0.821,2282.5,2282.1,11.90484277]
[1750690542365,0.821,2282.5,2282.1,7.523]
[1750690542570,0.821,2282.5,2281.9,4.38219437]
[1750690542902,0.821,2282.5,2282.0,7.524]
[1750690543212,0.821,2282.5,2282.1,4.38187907]
[1750690543726,0.821,2282.5,2282.1,4.38183908]
[1750690543870,0.821,2282.5,2282.0,11.90602828]
[1750690544203,2.27415902,2282.5,2282.0,11.90602828]
[1750690544607,1.3591,2282.4,2281.9,7.524]
[1750690544806,1.3591,2282.4,2281.9,7.523]
[1750690545104,0.8057,2282.3,2281.9,11.90523165]
[1750690545308,0.8057,2282.3,2281.9,11.90530745]
[1750690545695,0.8057,2282.3,2281.8,4.38243218]
[1750690545899,12.0865859,2282.3,2281.8,7.523]
[1750690546411,0.7677,2282.1,2281.7,7.523]
[1750690546570,0.7677,2282.1,2281.9,4.38230649]
[1750690546770,0.7677,2282.1,2281.9,4.38214882]
[1750690547201,0.7677,2282.1,2282.0,4.38212094]
[1750690547600,0.8052,2282.4,2282.3,4.38154493]
[1750690547799,0.7593,2282.7,2282.2,7.522]
[1750690547984,0.7593,2282.7,2282.6,4.38096907]
[1750690549298,0.8233,2283.0,2282.7,4.38077714]
[1750690549544,8.5833,2283.0,2282.9,4.38039335]
[1750690550115,8.5833,2283.0,2282.8,4.38046956]
[1750690550410,8.5833,2283.0,2282.8,4.38042178]
[1750690550569,8.5833,2283.0,2282.7,4.38065007]
[1750690550767,8.5833,2283.0,2282.8,4.38056218]
[1750690551391,8.5833,2283.0,2282.7,4.38066134]
[1750690551593,8.5833,2283.0,2282.8,4.38056801]
[1750690552113,9.44163,2283.0,2282.5,4.38101983]
[1750690552411,8.5833,2283.0,2282.6,11.90295775]
[1750690552882,8.5833,2283.0,2282.6,16.28377445]
[1750690553214,8.5833,2283.0,2282.6,7.522]
[1750690553427,0.7731,2282.4,2281.6,0.8122]
[1750690553727,8.5331,2282.4,2281.9,4.38223139]
[1750690554025,8.5331,2282.4,2281.8,4.3823896]
[1750690554225,10.0,2282.3,2281.8,4.3823896]
[1750690554385,10.0,2282.3,2281.7,4.38257905]
[1750690554586,10.0,2282.3,2281.8,11.90249335]
[1750690555021,10.0,2282.3,2281.8,7.52]
[1750690555327,13.27936902,2282.3,2281.8,11.90249709]
[1750690556923,13.27936902,2282.3,2281.8,7.52]
[1750690557490,0.7714,2282.2,2281.7,11.90268702]
[1750690557690,0.7714,2282.2,2281.7,7.52]
[1750690558024,0.7714,2282.2,2281.7,11.90261809]
[1750690558337,2.9524769,2282.2,2281.7,11.90253462]
[1750690558631,2.9524769,2282.2,2281.8,4.38247955]
[1750690558926,2.9524769,2282.2,2281.8,4.38238534]
[1750690559087,0.7714,2282.2,2281.8,4.38238534]
[1750690559289,0.7714,2282.2,2281.9,4.38224136]
[1750690559491,0.7714,2282.2,2281.9,4.38222924]
[1750690560191,7.76,2282.4,2282.3,4.38154493]
[1750690560504,7.76,2282.5,2282.4,4.38135296]
[1750690560702,7.76,2282.5,2282.2,7.518]
[1750690560930,7.76,2282.5,2282.2,4.38160306]
[1750690561115,7.76,2282.5,2281.4,0.808]
[1750690561116,10.8191,2282.4,2281.4,0.808]
[1750690561311,10.8191,2282.4,2281.7,4.38254801]
[1750690561312,7.76,2282.3,2281.7,4.38254801]
[1750690561531,7.76,2282.3,2281.8,4.38248612]
[1750690561725,7.76,2282.3,2281.7,11.90054801]
[1750690561726,7.76,2282.3,2281.9,4.38215697]
[1750690561933,7.76,2282.3,2281.7,7.518]
[1750690562131,7.76,2282.3,2281.7,11.90060861]
[1750690562354,8.69551,2282.3,2281.8,11.89942542]
[1750690562521,8.69551,2282.3,2281.8,7.517]
[1750690562713,0.8225,2282.1,2281.8,7.517]
[1750690562935,0.8225,2282.1,2281.8,11.89949305]
[1750690563132,0.8225,2282.1,2281.5,4.38300476]
[1750690563319,1.774301,2282.1,2281.6,11.89975891]
[1750690563819,1.774301,2282.1,2281.7,4.38269182]
[1750690564022,1.774301,2282.1,2281.6,7.517]
[1750690564331,1.774301,2282.1,2281.6,11.89978187]
[1750690564730,1.774301,2282.1,2281.4,2.073]
[1750690564938,7.76,2282.0,2281.5,7.517]
[1750690565157,14.48099018,2281.8,2281.3,4.90237967]
[1750690565360,0.7704,2281.4,2281.3,4.90237967]
[1750690565647,8.5304,2281.4,2281.3,4.90237967]
[1750690565853,8.5304,2281.4,2280.9,4.3841007]
[1750690566018,8.5304,2281.4,2280.9,4.38423429]
[1750690566220,8.5304,2281.4,2281.0,4.3840406]
[1750690566432,8.5304,2281.4,2281.1,4.38370876]
[1750690566638,8.5304,2281.4,2281.0,4.38396028]
[1750690567115,9.38344,2281.4,2280.9,4.38412656]
[1750690567319,9.38344,2281.4,2280.7,7.516]
[1750690567518,0.8069,2281.6,2281.2,4.38361069]
[1750690567720,0.8069,2281.8,2281.2,7.516]
[1750690568037,0.8069,2281.8,2281.5,4.38306424]
[1750690568449,0.8069,2281.8,2281.2,11.89957369]
[1750690568621,1.66359,2281.8,2281.2,4.38350542]
[1750690569659,1.66359,2281.8,2281.1,7.515]
[1750690569863,1.66359,2281.8,2281.3,4.3834062]
[1750690570160,11.66359,2281.8,2281.2,4.38355925]
[1750690570346,11.66359,2281.8,2281.3,4.3834546]
[1750690570675,0.8182,2281.6,2281.2,4.38365772]
[1750690570861,0.8182,2281.6,2281.3,4.38337568]
[1750690571373,7.76,2281.9,2281.7,4.38256717]
[1750690571669,8.5348,2282.0,2281.9,4.38231298]
[1750690571881,8.5348,2282.0,2281.6,4.3828892]
[1750690572071,8.5348,2282.0,2281.7,4.38265377]
[1750690572425,10.55,2281.9,2280.7,0.7695]
[1750690572628,10.55,2281.9,2281.2,4.38357569]
[1750690572629,0.7888,2281.7,2281.2,4.38357569]
[1750690572828,7.76,2281.6,2281.2,4.38357569]
[1750690573029,7.76,2281.6,2281.1,4.38377616]
[1750690573030,14.49939018,2281.4,2280.5,0.7695]
[1750690573245,14.49819018,2281.4,2280.9,4.38414268]
[1750690573464,2.44981902,2281.3,2281.0,4.38399715]
[1750690573665,2.44981902,2281.3,2280.6,11.89980082]
[1750690573666,0.7876,2281.4,2281.2,4.38364378]
[1750690574366,0.7876,2281.4,2281.1,4.3837321]
[1750690574664,0.7876,2281.4,2281.2,4.38360316]
[1750690574850,0.7876,2281.4,2281.0,7.515]
[1750690574851,10.0,2281.6,2281.4,4.38325389]
[1750690575332,10.0,2281.6,2281.3,4.38334927]
[1750690575532,10.0,2281.6,2281.2,4.38358616]
[1750690576368,0.7514,2281.5,2281.2,4.38365663]
[1750690576864,0.7514,2281.5,2281.1,4.38376896]
[1750690577069,0.7514,2281.5,2281.2,4.38360305]
[1750690577470,0.7514,2281.5,2281.1,4.38372749]
[1750690577839,0.7514,2281.5,2281.0,11.89887236]
[1750690578160,0.7514,2281.5,2281.0,7.515]
[1750690578336,0.7514,2281.5,2281.2,4.38364196]
[1750690578537,0.7514,2281.5,2281.1,4.38375017]
[1750690579061,0.7514,2281.5,2281.2,4.38360708]
[1750690579234,0.7514,2281.5,2281.3,4.3833683]
[1750690579434,0.7514,2281.5,2281.1,4.38374397]
[1750690579773,0.7514,2281.5,2281.1,4.3836881]
[1750690579971,0.7514,2281.5,2281.3,4.38342385]
[1750690580561,0.7514,2281.5,2281.2,4.38360209]
[1750690581069,0.7514,2281.5,2280.8,6.44940514]
[1750690581070,13.71059018,2281.3,2280.6,0.7568]
[1750690581270,0.8088,2281.2,2280.7,11.89859511]
[1750690581475,8.5688,2281.4,2281.2,4.383544]
[1750690581773,8.5688,2281.4,2281.1,4.38370467]
[1750690581993,8.5688,2281.4,2281.0,4.3839171]
[1750690582287,8.5688,2281.4,2281.2,4.38363244]
[1750690582437,7.76,2281.4,2281.2,4.38349428]
[1750690582631,7.76,2281.4,2281.3,4.38346556]
[1750690582979,17.76,2281.8,2281.3,4.38346556]
[1750690583183,0.8162,2282.0,2281.1,8.341]
[1750690583364,0.8162,2282.0,2281.6,4.38277149]
[1750690583573,10.8162,2282.0,2281.5,7.513]
[1750690583875,0.70005469,2281.9,2281.6,4.38273495]
[1750690584188,10.8162,2282.0,2281.5,11.89601834]
[1750690584507,0.8162,2282.0,2281.7,4.38261761]
[1750690585462,0.8162,2282.0,2281.7,4.38261679]
[1750690585640,0.8162,2282.0,2281.7,4.38260575]
[1750690587266,0.8162,2282.0,2281.5,7.513]
[1750690587581,0.8162,2282.0,2281.3,7.512]
[1750690587883,0.8162,2282.0,2281.3,11.89527647]
[1750690588385,0.7923,2281.8,2281.4,4.38326891]
[1750690589188,0.7923,2281.8,2281.5,4.38308025]
[1750690589476,0.7923,2281.8,2281.7,4.38269711]
[1750690589667,2.065,2282.3,2281.7,4.38269711]
[1750690589866,0.8018,2282.1,2281.7,4.38269711]
[1750690590382,0.8018,2282.1,2281.8,4.38248516]
[1750690590584,0.8018,2282.1,2281.7,4.38269711]
[1750690590879,0.8018,2282.1,2281.6,4.38282303]
[1750690591185,0.8018,2282.1,2281.5,11.89299381]
[1750690591381,11.884848,2282.0,2281.6,4.38287445]
[1750690591586,11.884848,2282.0,2281.5,11.89297419]
[1750690591883,10.0,2282.0,2281.7,4.38258844]
[1750690592254,10.0,2282.0,2281.8,4.38239129]
[1750690592462,10.0,2282.1,2281.8,4.38239129]
[1750690592657,10.0,2282.1,2281.9,4.38221001]
[1750690592851,10.0,2282.1,2281.9,4.38216028]
[1750690593253,10.0,2282.1,2282.0,4.38212094]
[1750690593481,8.5815,2282.2,2282.1,4.38192892]
[1750690593650,7.76,2282.2,2282.0,4.38200564]
[1750690594484,17.76,2282.2,2282.1,4.38192892]
[1750690594797,17.76,2282.2,2281.9,11.89124415]
[1750690595098,17.76,2282.2,2281.9,11.8912742]
[1750690595310,17.76,2282.2,2282.0,4.38210609]
[1750690595762,17.76,2282.2,2282.0,11.89110609]
[1750690595964,17.76,2282.2,2282.0,11.89010609]
[1750690596377,17.76,2282.2,2282.0,7.508]
[1750690597286,17.76,2282.2,2282.0,11.89002435]
[1750690597490,17.76,2282.2,2282.0,11.88996232]
[1750690598183,17.76,2282.2,2281.7,0.8007]
[1750690598388,10.7695,2282.1,2281.4,0.767]
[1750690598688,0.7695,2281.7,2280.9,5.15113709]
[1750690598880,7.76,2281.6,2281.1,4.38368278]
[1750690599184,10.0,2281.5,2281.0,11.89096264]
[1750690599396,10.0,2281.5,2281.1,4.38379736]
[1750690599548,0.7695,2281.4,2281.1,4.38379736]
[1750690600388,0.7695,2281.5,2281.0,7.507]
[1750690600589,0.7695,2281.5,2281.3,4.3834338]
[1750690600754,0.7695,2281.5,2281.3,4.38336916]
[1750690601381,0.7695,2281.5,2281.0,7.507]
[1750690601583,0.7695,2281.5,2281.1,11.88875804]
[1750690602106,0.7695,2281.5,2281.2,4.38365081]
[1750690602271,0.7695,2281.5,2281.2,4.38365772]
[1750690602778,0.7695,2281.5,2281.1,11.88873587]
[1750690603493,0.7695,2281.5,2281.1,11.88869122]
[1750690603803,0.7695,2281.5,2281.0,10.0]
[1750690604095,1.62245,2281.5,2281.1,7.505]
[1750690604263,1.62245,2281.5,2281.1,11.88877139]
[1750690604463,1.62245,2281.5,2281.1,11.88874759]
[1750690604464,7.76,2281.4,2281.1,11.88874759]
[1750690604984,7.76,2281.4,2281.0,4.38392893]
[1750690605186,0.8055,2281.2,2280.2,0.7507]
[1750690605369,0.8055,2281.0,2280.3,7.505]
[1750690605577,0.8055,2281.0,2280.4,4.3850795]
[1750690605770,7.76,2280.9,2280.5,4.38498816]
[1750690605978,0.55,2280.9,2280.0,2.059]
[1750690606195,0.55,2280.9,2279.8,0.42965595]
[1750690606196,0.55,2280.7,2279.8,0.8089]
[1750690606397,0.7738,2280.6,2279.9,7.504]
[1750690606594,0.55,2280.5,2279.6,0.8196]
[1750690606902,0.7709,2280.0,2279.4,4.38697414]
[1750690607067,0.7709,2279.8,2279.0,4.38784128]
[1750690607267,0.7709,2279.8,2278.8,7.504]
[1750690607495,0.55,2279.7,2279.0,4.38780209]
[1750690607694,0.55,2279.5,2278.8,7.504]
[1750690607893,10.55,2279.5,2278.8,7.504]
[1750690608100,10.55,2279.3,2278.7,7.505]
[1750690608606,10.55,2279.3,2278.8,4.38826326]
[1750690608804,10.55,2279.3,2278.7,7.505]
[1750690609109,10.55,2279.3,2278.0,4.38971178]
[1750690609110,10.55,2278.7,2278.0,4.38971178]
[1750690609291,2.15174264,2278.6,2278.1,4.38960826]
[1750690609634,0.7502,2279.0,2278.2,7.505]
[1750690609808,0.7502,2279.0,2278.5,4.38881782]
[1750690609992,0.7502,2279.0,2278.2,7.505]
[1750690610317,0.7502,2279.0,2278.3,4.38923758]
[1750690610483,0.7502,2279.0,2278.0,0.788]
[1750690610680,0.7502,2279.0,2278.5,4.3888248]
[1750690610897,0.7502,2279.0,2278.3,4.38917312]
[1750690610898,0.7502,2278.6,2278.0,4.3898137]
[1750690611734,0.7502,2278.6,2278.3,4.38911622]
[1750690612023,3.3602,2278.9,2278.4,4.38894879]
[1750690612188,3.3602,2278.9,2278.5,4.38885111]
[1750690612384,3.3602,2278.9,2278.4,4.38896044]
[1750690612691,5.475012,2278.9,2278.0,4.38974099]
[1750690612886,5.475012,2278.9,2278.1,4.38962094]
[1750690613309,5.475012,2278.9,2278.0,11.89673508]
[1750690613515,11.3426,2278.6,2277.7,7.7273009]
[1750690613693,10.0,2278.3,2278.0,4.38980244]
[1750690613899,10.0,2278.3,2277.7,7.7273009]
[1750690613900,1.344,2278.2,2277.7,0.2213009]
[1750690614096,0.794,2278.2,2277.7,0.2213009]
[1750690614627,0.794,2278.2,2277.8,4.39019879]
[1750690614928,0.794,2278.2,2277.9,4.3899043]
[1750690615110,0.794,2278.2,2277.9,4.39000834]
[1750690615426,2.0794,2278.2,2277.7,0.2213009]
[1750690615590,0.55,2277.9,2277.7,0.2213009]
[1750690616825,10.0,2278.1,2277.7,0.2213009]
[1750690616990,4.1394,2278.2,2277.7,4.61169469]
[1750690616991,0.794,2278.2,2277.7,4.61169469]
[1750690617195,10.96742641,2278.7,2278.0,4.38971166]
[1750690617196,0.8326,2278.6,2278.0,4.38971166]
[1750690617395,12.21870264,2278.6,2277.9,4.38990099]
[1750690617595,2.21870264,2278.6,2277.9,4.38990099]
[1750690617791,12.21870264,2278.6,2277.7,0.2213009]
[1750690617992,10.55,2278.5,2277.8,4.39009427]
[1750690618197,10.55,2278.5,2277.7,0.2213009]
[1750690618400,14.88071291,2278.5,2277.8,4.39011235]
[1750690619224,14.88071291,2278.5,2277.7,4.6116944]
[1750690619431,14.88071291,2278.5,2277.7,4.61168064]
[1750690619736,14.88071291,2278.5,2277.7,4.61160196]
[1750690620116,14.88071291,2278.5,2277.8,4.39017128]
[1750690620316,1.91604156,2278.4,2277.7,0.2213009]
[1750690620521,0.55,2278.1,2277.7,0.2213009]
[1750690621626,0.55,2277.9,2277.7,0.2213009]
[1750690621940,18.5706,2277.8,2277.7,0.2213009]
[1750690622509,0.42873441,2279.3,2277.7,0.2213009]